bitfinex/quotes_SOLUSD_20230903
["timestamp","ask_amount","ask_price","bid_price","bid_amount"]
[1693778315011,20.0,19.455,19.441,55.0]
[1693778315513,40.66666666,19.459,19.441,55.0]
[1693778315514,48.68266666,19.459,19.441,55.0]
[1693778315717,40.66666666,19.459,19.441,114.05260908]
[1693778315914,99.66,19.463,19.442,20.0]
[1693778316125,99.66,19.463,19.443,55.0]
[1693778316426,99.66,19.463,19.444,20.0]
[1693778316618,99.66,19.463,19.445,55.0]
[1693778317311,67.10720164,19.46,19.445,55.0]
[1693778318125,26.35,19.46,19.445,55.0]
[1693778320447,114.76956789,19.463,19.445,55.0]
[1693778320633,114.76956789,19.463,19.45,26.35]
[1693778320835,99.66,19.463,19.45,26.35]
[1693778323418,99.66,19.463,19.451,55.0]
[1693778324613,289.92673046,19.466,19.451,55.0]
[1693778324819,20.0,19.465,19.451,55.0]
[1693778325430,20.0,19.466,19.451,55.0]
[1693778325627,20.0,19.466,19.451,75.564149]
[1693778326625,15.66975308,19.467,19.451,75.564149]
[1693778326819,15.66975308,19.467,19.452,20.0]
[1693778327019,15.66975308,19.467,19.453,55.0]
[1693778327226,15.66975308,19.467,19.454,20.0]
[1693778327429,15.66975308,19.467,19.455,55.0]
[1693778368494,15.66975308,19.467,19.454,20.0]
[1693778368688,15.66975308,19.467,19.452,20.0]
[1693778368889,15.66975308,19.467,19.452,79.05260908]
[1693778369796,15.66975308,19.467,19.453,55.0]
[1693778369999,15.66975308,19.467,19.454,20.0]
[1693778370196,15.66975308,19.467,19.455,55.0]
[1693778390707,15.66975308,19.467,19.454,20.0]
[1693778390912,83.014,19.466,19.451,20.564149]
[1693778391109,75.0,19.466,19.451,20.564149]
[1693778400532,75.0,19.466,19.448,15.09254498]
[1693778400828,75.0,19.466,19.451,55.0]
[1693778403323,75.0,19.466,19.45,52.7]
[1693778403511,75.0,19.466,19.45,26.35]
[1693778404122,115.1604113,19.466,19.45,26.35]
[1693778404630,123.1744113,19.466,19.45,26.35]
[1693778413432,145.86485201,19.466,19.442,136.69818575]
[1693778413740,145.86485201,19.466,19.443,20.0]
[1693778413939,145.86485201,19.466,19.443,79.05260908]
[1693778414741,145.86485201,19.466,19.444,55.0]
[1693778414925,34.366,19.46,19.445,20.0]
[1693778415124,63.016,19.459,19.443,79.05260908]
[1693778415326,55.0,19.459,19.443,79.05260908]
[1693778415926,55.0,19.459,19.443,134.05260908]
[1693778416336,55.0,19.459,19.443,75.0]
[1693778416528,55.0,19.459,19.443,20.0]
[1693778416730,55.0,19.459,19.441,20.0]
[1693778416929,55.0,19.459,19.442,59.052609]
[1693778417234,55.0,19.459,19.443,20.0]
[1693778418536,55.0,19.459,19.441,20.0]
[1693778419036,55.0,19.459,19.442,59.05261]
[1693778419238,55.0,19.459,19.443,20.0]
[1693778422133,98.9531,19.46,19.443,20.0]
[1693778422330,98.9531,19.46,19.45,26.35]
[1693778430839,98.9531,19.46,19.451,55.0]
[1693778431546,40.1604113,19.466,19.451,55.0]
[1693778431748,75.0,19.465,19.451,55.0]
[1693778433947,20.0,19.465,19.451,55.0]
[1693778442952,92.9331,19.466,19.451,55.0]
[1693778443139,92.9331,19.466,19.452,20.0]
[1693778443339,15.66975308,19.467,19.453,55.0]
[1693778443538,15.66975308,19.467,19.454,20.0]
[1693778445636,15.66975308,19.467,19.455,55.0]
[1693778474584,1.49999999,19.468,19.455,55.0]
[1693778475087,4.94461036,19.471,19.455,55.0]
[1693778478187,55.0,19.47,19.455,55.0]
[1693778478389,4.94461036,19.469,19.455,55.0]
[1693778478994,12.95661036,19.469,19.455,55.0]
[1693778481595,4.94461036,19.469,19.455,55.0]
[1693778482385,55.0,19.468,19.454,20.0]
[1693778482587,4.94461036,19.467,19.454,20.0]
[1693778489188,4.94461036,19.467,19.45,85.40260908]
[1693778489389,24.94461036,19.467,19.451,55.0]
[1693778489997,24.94461036,19.467,19.451,110.0]
[1693778492394,55.0,19.466,19.45,85.40260908]
[1693778492602,8.015,19.463,19.45,26.35]
[1693778492997,8.015,19.463,19.448,55.0]
[1693778493199,8.015,19.463,19.443,111.14380891]
[1693778493397,55.0,19.462,19.443,59.05260908]
[1693778493587,8.017,19.459,19.444,20.0]
[1693778493891,55.0,19.458,19.444,20.0]
[1693778494098,63.017,19.458,19.444,20.0]
[1693778494301,55.0,19.458,19.444,20.0]
[1693778494899,55.0,19.458,19.44,41.64475308]
[1693778494900,20.0,19.457,19.44,26.35]
[1693778495107,8.019,19.453,19.431,25.55437684]
[1693778495297,26.35,19.45,19.433,20.0]
[1693778495504,34.37,19.45,19.433,20.0]
[1693778495700,55.0,19.449,19.433,20.0]
[1693778496002,55.0,19.449,19.432,20.0]
[1693778496205,55.0,19.449,19.432,73.684362]
[1693778496404,81.86747796,19.449,19.432,20.0]
[1693778496909,81.86747796,19.449,19.431,20.0]
[1693778497103,81.86747796,19.449,19.431,45.55437684]
[1693778497502,81.86747796,19.449,19.432,55.0]
[1693778497702,81.86747796,19.449,19.433,20.0]
[1693778499408,20.0,19.448,19.43,26.35]
[1693778499611,20.0,19.448,19.425,77.64557667]
[1693778499795,26.35,19.45,19.43,26.35]
[1693778499997,93.5821,19.456,19.431,20.0]
[1693778500201,20.0,19.455,19.44,26.35]
[1693778501096,401.4,19.462,19.441,55.0]
[1693778501299,401.4,19.462,19.442,20.0]
[1693778501300,494.9821,19.462,19.442,20.0]
[1693778501503,494.9821,19.462,19.443,55.0]
[1693778501802,494.9821,19.462,19.444,20.0]
[1693778502003,494.9821,19.462,19.445,55.0]
[1693778502814,55.0,19.459,19.445,55.0]
[1693778504512,494.9821,19.462,19.445,55.0]
[1693778505802,93.5821,19.462,19.445,55.0]
[1693778507003,40.82716048,19.465,19.445,55.0]
[1693778507204,55.0,19.464,19.445,55.0]
[1693778508503,99.606,19.466,19.45,26.35]
[1693778508808,75.0,19.465,19.451,55.0]
[1693778510914,20.0,19.465,19.451,55.0]
[1693778511117,41.39917695,19.467,19.451,55.0]
[1693778511304,1.49999999,19.467,19.452,20.0]
[1693778511621,1.49999999,19.469,19.453,55.0]
[1693778511802,1.49999999,19.469,19.454,20.0]
[1693778512504,56.49999999,19.469,19.454,20.0]
[1693778520710,56.49999999,19.469,19.451,20.0]
[1693778520910,56.49999999,19.469,19.452,55.0]
[1693778521106,56.49999999,19.469,19.453,20.0]
[1693778523621,56.49999999,19.469,19.452,20.0]
[1693778524819,1.49999999,19.469,19.452,20.0]
[1693778525018,1.49999999,19.469,19.453,55.0]
[1693778525221,1.49999999,19.469,19.454,20.0]
[1693778525523,1.49999999,19.469,19.455,55.0]
[1693778529821,4.94461036,19.471,19.455,55.0]
[1693778530932,24.94461036,19.475,19.455,55.0]
[1693778531111,55.0,19.474,19.455,55.0]
[1693778531317,4.94461036,19.473,19.455,55.0]
[1693778531626,55.0,19.472,19.455,55.0]
[1693778531810,4.94461036,19.471,19.455,55.0]
[1693778536127,4.94461036,19.471,19.46,26.35]
[1693778539434,4.94461036,19.471,19.455,55.0]
[1693778544140,4.94461036,19.471,19.46,26.35]
[1693778544431,22.82207157,19.477,19.46,26.35]
[1693778544432,4.94461036,19.474,19.461,55.0]
[1693778544635,26.35,19.48,19.462,20.0]
[1693778544636,4.94461036,19.48,19.462,20.0]
[1693778544834,4.94461036,19.48,19.463,55.0]
[1693778545229,4.94461036,19.481,19.464,20.0]
[1693778545430,4.94461036,19.482,19.465,55.0]
[1693778545629,41.13874613,19.482,19.465,55.0]
[1693778545841,4.94461036,19.48,19.465,55.0]
[1693778546032,4.94461036,19.478,19.465,55.0]
[1693778546229,55.0,19.481,19.465,55.0]
[1693778546230,4.94461036,19.48,19.465,55.0]
[1693778546427,4.94461036,19.478,19.465,55.0]
[1693778555145,4.94461036,19.482,19.465,55.0]
[1693778555445,55.0,19.481,19.465,55.0]
[1693778555650,4.94461036,19.48,19.465,55.0]
[1693778555947,4.94461036,19.478,19.465,55.0]
[1693778564354,4.94461036,19.478,19.46,26.35]
[1693778564355,24.94461036,19.478,19.46,26.35]
[1693778564555,55.0,19.477,19.453,60.2515]
[1693778564762,34.362,19.47,19.454,20.0]
[1693778564960,4.94461036,19.469,19.454,20.0]
[1693778565473,4.94461036,19.469,19.454,46.35]
[1693778565864,4.94461036,19.469,19.455,55.0]
[1693778566366,4.94461036,19.469,19.454,46.35]
[1693778566862,55.0,19.468,19.454,46.35]
[1693778567068,4.94461036,19.467,19.454,20.0]
[1693778567260,4.94461036,19.467,19.451,20.0]
[1693778567968,55.0,19.466,19.451,20.0]
[1693778569167,55.0,19.466,19.451,46.35]
[1693778569960,26.35,19.47,19.452,55.0]
[1693778570173,57.55538963,19.469,19.453,20.0]
[1693778570971,57.55538963,19.469,19.454,55.0]
[1693778571175,57.55538963,19.469,19.455,20.0]
[1693778571870,2.55538963,19.469,19.456,55.0]
[1693778572071,4.94461036,19.473,19.456,55.0]
[1693778572958,4.94461036,19.474,19.456,55.0]
[1693778573157,4.94461036,19.472,19.456,55.0]
[1693778577284,4.94461036,19.472,19.46,26.35]
[1693778580190,4.94461036,19.472,19.457,55.0]
[1693778580378,4.94461036,19.472,19.458,55.0]
[1693778584686,4.94461036,19.472,19.46,26.35]
[1693778584988,4.94461036,19.475,19.461,55.0]
[1693778585189,4.94461036,19.479,19.462,20.0]
[1693778586699,8.009,19.478,19.462,20.0]
[1693778587001,59.94461036,19.477,19.462,20.0]
[1693778591206,59.94461036,19.477,19.461,20.0]
[1693778592098,59.94461036,19.477,19.456,40.34532373]
[1693778592099,67.95361036,19.477,19.452,166.53912679]
[1693778592288,8.011,19.473,19.453,20.0]
[1693778592600,4.94461036,19.471,19.453,20.0]
[1693778593299,4.94461036,19.471,19.453,88.697865]
[1693778593599,4.94461036,19.471,19.454,55.0]
[1693778593801,4.94461036,19.471,19.455,20.0]
[1693778594005,4.94461036,19.471,19.456,55.0]
[1693778596700,4.94461036,19.475,19.456,55.0]
[1693778596899,55.0,19.474,19.456,55.0]
[1693778597101,4.94461036,19.473,19.456,55.0]
[1693778609816,4.94461036,19.473,19.46,26.35]
[1693778612317,24.94461036,19.475,19.461,55.0]
[1693778612711,4.94461036,19.475,19.461,55.0]
[1693778612918,4.94461036,19.476,19.461,55.0]
[1693778621728,12.95461036,19.476,19.46,26.35]
[1693778621921,8.012,19.469,19.455,20.0]
[1693778622121,4.94461036,19.468,19.454,20.0]
[1693778622926,4.94461036,19.468,19.455,55.0]
[1693778623127,8.011,19.471,19.455,55.0]
[1693778623328,4.94461036,19.47,19.454,20.0]
[1693778625035,4.94461036,19.47,19.455,55.0]
[1693778626719,4.94461036,19.471,19.455,55.0]
[1693778629139,4.94461036,19.473,19.455,55.0]
[1693778629340,55.0,19.472,19.455,55.0]
[1693778629541,4.94461036,19.471,19.455,55.0]
[1693778653856,4.94461036,19.473,19.455,55.0]
[1693778654055,4.94461036,19.473,19.46,26.35]
[1693778702397,4.94461036,19.473,19.455,55.0]
[1693778708494,4.94461036,19.473,19.454,61.94138816]
[1693778708495,26.35,19.47,19.454,20.0]
[1693778708698,59.94461036,19.469,19.454,20.0]
[1693778708897,4.94461036,19.469,19.454,20.0]
[1693778709093,4.94461036,19.471,19.454,20.0]
[1693778709296,55.0,19.47,19.454,20.0]
[1693778709496,4.94461036,19.469,19.454,20.0]
[1693778709694,4.94461036,19.469,19.455,55.0]
[1693778709898,55.0,19.47,19.455,55.0]
[1693778710100,1.49999999,19.469,19.455,55.0]
[1693778710296,1.49999999,19.47,19.455,55.0]
[1693778717405,4.94461036,19.473,19.455,55.0]
[1693778720512,12.95561036,19.473,19.455,55.0]
[1693778722415,4.94461036,19.473,19.455,55.0]
[1693778722600,12.95561036,19.473,19.455,55.0]
[1693778725731,4.94461036,19.473,19.455,55.0]
[1693778728717,12.95561036,19.473,19.455,55.0]
[1693778731215,4.94461036,19.473,19.455,55.0]
[1693778733914,4.94461036,19.476,19.46,26.35]
[1693778734117,4.94461036,19.476,19.461,55.0]
[1693778739639,4.94461036,19.476,19.462,20.0]
[1693778739836,4.94461036,19.477,19.463,55.0]
[1693778740020,4.94461036,19.479,19.464,20.0]
[1693778740224,4.94461036,19.479,19.465,55.0]
[1693778743359,26.35,19.48,19.465,55.0]
[1693778743560,4.94461036,19.479,19.465,55.0]
[1693778746161,4.94461036,19.482,19.465,55.0]
[1693778756455,4.94461036,19.484,19.465,55.0]
[1693778757562,12.95061036,19.484,19.465,55.0]
[1693778757757,26.35,19.48,19.464,20.0]
[1693778757973,4.94461036,19.479,19.463,20.0]
[1693778758980,4.94461036,19.479,19.464,55.0]
[1693778759176,4.94461036,19.479,19.465,20.0]
[1693778759375,4.94461036,19.479,19.466,55.0]
[1693778759976,4.94461036,19.482,19.466,55.0]
[1693778760666,4.94461036,19.482,19.466,110.0]
[1693778763973,4.94461036,19.482,19.466,55.0]
[1693778764873,4.94461036,19.482,19.466,110.0]
[1693778766183,4.94461036,19.482,19.466,55.0]
[1693778766363,4.94461036,19.48,19.466,55.0]
[1693778798417,55.0,19.479,19.465,20.0]
[1693778798622,4.94461036,19.478,19.465,20.0]
[1693778798822,4.94461036,19.478,19.463,20.0]
[1693778799028,4.94461036,19.478,19.464,55.0]
[1693778799218,4.94461036,19.478,19.465,20.0]
[1693778804327,55.0,19.477,19.464,20.0]
[1693778804517,4.94461036,19.476,19.463,20.0]
[1693778805030,4.94461036,19.476,19.462,75.0]
[1693778819241,4.94461036,19.476,19.462,20.0]
[1693778819442,55.0,19.475,19.462,20.0]
[1693778819646,4.94461036,19.474,19.462,20.0]
[1693778819944,4.94461036,19.477,19.462,20.0]
[1693778820142,55.0,19.476,19.462,20.0]
[1693778820349,4.94461036,19.475,19.462,20.0]
[1693778820938,4.94461036,19.475,19.463,55.0]
[1693778821131,4.94461036,19.477,19.464,20.0]
[1693778822844,4.94461036,19.479,19.465,55.0]
[1693778823234,4.94461036,19.481,19.465,55.0]
[1693778829051,4.94461036,19.483,19.47,26.35]
[1693778829248,4.94461036,19.485,19.47,26.35]
[1693778831750,4.94461036,19.485,19.471,55.0]
[1693778831961,2.44461036,19.485,19.472,2.32569337]
[1693778833248,2.44461036,19.485,19.471,55.0]
[1693778833545,2.44461036,19.485,19.472,0.87533382]
[1693778840263,2.44461036,19.486,19.472,20.87533382]
[1693778840465,2.44461036,19.486,19.473,55.0]
[1693778840661,2.44461036,19.486,19.474,22.5]
[1693778843262,2.44461036,19.488,19.474,22.5]
[1693778843452,57.44461036,19.488,19.474,22.5]
[1693778844566,2.44461036,19.488,19.475,55.0]
[1693778844756,2.44461036,19.488,19.48,26.35]
[1693778844964,2.44461036,19.492,19.48,26.35]
[1693778845259,2.44461036,19.493,19.48,26.35]
[1693778845473,2.44461036,19.493,19.476,2.5]
[1693778845965,72.74199094,19.493,19.476,2.5]
[1693778847162,114.63618713,19.493,19.476,2.5]
[1693778848061,122.63918713,19.493,19.476,2.5]
[1693778848261,122.63918713,19.493,19.475,22.5]
[1693778848467,23.53465632,19.492,19.475,22.5]
[1693778848655,57.44461036,19.491,19.475,22.5]
[1693778848854,54.94461036,19.491,19.475,2.5]
[1693778849055,54.94461036,19.491,19.472,4.94461036]
[1693778849469,54.94461036,19.491,19.473,55.0]
[1693778849766,54.94461036,19.491,19.474,24.94461036]
[1693778852060,54.94461036,19.491,19.476,4.94461036]
[1693778853968,55.0,19.492,19.476,4.94461036]
[1693778854971,63.003,19.492,19.476,4.94461036]
[1693778855365,55.0,19.492,19.476,4.94461036]
[1693778868867,15.29738058,19.493,19.478,4.94461036]
[1693778879782,134.61225687,19.496,19.48,26.35]
[1693778879990,20.0,19.495,19.482,4.94461036]
[1693778888180,93.7293,19.496,19.482,4.94461036]
[1693778888380,93.7293,19.496,19.484,4.94461036]
[1693778888578,93.7293,19.496,19.486,4.94461036]
[1693778888781,93.7293,19.496,19.484,4.94461036]
[1693778888976,93.7293,19.496,19.486,4.94461036]
[1693778889177,416.79271046,19.504,19.486,4.94461036]
[1693778889376,15.39271046,19.504,19.486,4.94461036]
[1693778889576,91.0875,19.503,19.486,4.94461036]
[1693778889777,55.0,19.502,19.486,4.94461036]
[1693778893881,91.0875,19.503,19.487,55.0]
[1693778894092,91.0875,19.503,19.488,4.94461036]
[1693778904798,26.35,19.5,19.486,4.94461036]
[1693778904987,55.0,19.499,19.481,24.94461036]
[1693778906013,55.0,19.499,19.482,55.0]
[1693778906319,55.0,19.499,19.483,24.94461036]
[1693778922214,91.0875,19.503,19.483,24.94461036]
[1693778922414,91.0875,19.503,19.484,80.70403862]
[1693778922623,91.0875,19.503,19.485,24.94461036]
[1693778922825,91.0875,19.503,19.486,55.0]
[1693778923024,91.0875,19.503,19.487,4.94461036]
[1693778923232,91.0875,19.503,19.488,55.0]
[1693778923433,55.0,19.502,19.489,4.94461036]
[1693778923823,99.2138,19.501,19.489,4.94461036]
[1693778937134,99.2138,19.501,19.487,4.94461036]
[1693778937340,99.2138,19.501,19.488,55.0]
[1693778937542,99.2138,19.501,19.489,4.94461036]
[1693778942145,99.2138,19.501,19.49,26.35]
[1693778942354,99.2138,19.501,19.491,4.94461036]
[1693778950463,99.2138,19.501,19.492,55.0]
[1693778950850,99.2138,19.501,19.491,55.0]
[1693778951864,99.2138,19.501,19.492,20.0]
[1693778952065,99.2138,19.501,19.493,55.0]
[1693778952267,99.2138,19.501,19.494,20.0]
[1693778952663,26.35,19.51,19.494,20.0]
[1693778952967,66.61694044,19.51,19.494,20.0]
[1693778953357,55.0,19.509,19.494,20.0]
[1693778953559,55.0,19.509,19.493,110.0]
[1693778953759,55.0,19.509,19.494,20.0]
[1693778954468,95.666,19.508,19.494,20.0]
[1693778956456,55.0,19.507,19.494,20.0]
[1693778956870,55.0,19.507,19.491,20.0]
[1693778957070,55.0,19.507,19.492,55.0]
[1693778957263,55.0,19.507,19.493,20.0]
[1693778962864,95.666,19.508,19.494,55.0]
[1693778963072,95.666,19.508,19.495,20.0]
[1693778963271,15.18624934,19.51,19.495,20.0]
[1693778964080,55.0,19.509,19.495,20.0]
[1693778964667,92.1896,19.508,19.495,20.0]
[1693778965879,92.1896,19.508,19.496,55.0]
[1693778966580,15.18624934,19.51,19.496,55.0]
[1693778970171,15.18624934,19.51,19.495,20.0]
[1693778970370,55.0,19.509,19.492,20.0]
[1693778970571,55.0,19.509,19.493,55.0]
[1693778970779,93.3035,19.508,19.494,20.0]
[1693778970970,93.3035,19.508,19.495,55.0]
[1693778973288,15.18624934,19.51,19.495,55.0]
[1693778975189,133.36831708,19.515,19.495,55.0]
[1693778976585,55.0,19.514,19.495,55.0]
[1693778977688,55.0,19.514,19.494,20.0]
[1693778977989,26.35,19.51,19.492,20.0]
[1693778978286,55.0,19.509,19.492,20.0]
[1693778979091,93.9835,19.508,19.493,55.0]
[1693778979387,93.9835,19.508,19.494,20.0]
[1693778991183,93.9835,19.508,19.495,55.0]
[1693778995504,53.25046009,19.516,19.495,55.0]
[1693778995704,15.14153845,19.515,19.495,55.0]
[1693778996809,55.0,19.514,19.495,55.0]
[1693778998012,97.3612,19.513,19.495,55.0]
[1693778998191,55.0,19.512,19.495,55.0]
[1693778999215,97.3612,19.511,19.495,55.0]
[1693778999593,15.14153845,19.515,19.5,26.35]
[1693778999797,112.50273845,19.515,19.501,55.0]
[1693779008008,112.50273845,19.515,19.499,55.0]
[1693779008205,55.0,19.514,19.494,20.0]
[1693779009212,55.0,19.514,19.494,61.937404]
[1693779009414,55.0,19.514,19.495,55.0]
[1693779010217,55.0,19.514,19.494,61.937404]
[1693779011411,55.0,19.514,19.495,55.0]
[1693779017423,112.50273845,19.515,19.495,55.0]
[1693779017717,120.49673845,19.515,19.495,55.0]
[1693779018827,55.0,19.514,19.495,55.0]
[1693779031926,55.0,19.514,19.5,26.35]
[1693779043124,112.50273845,19.515,19.5,26.35]
[1693779043440,112.50273845,19.515,19.501,55.0]
[1693779043734,97.3612,19.515,19.501,55.0]
[1693779044123,443.41128783,19.518,19.501,55.0]
[1693779044322,20.0,19.517,19.501,55.0]
[1693779045636,15.04923076,19.518,19.501,55.0]
[1693779045841,53.12852357,19.52,19.502,20.0]
[1693779046037,135.79654614,19.522,19.503,55.0]
[1693779046225,135.79654614,19.522,19.504,20.0]
[1693779046430,135.79654614,19.522,19.505,55.0]
[1693779047141,95.0827,19.522,19.505,55.0]
[1693779048935,15.65230768,19.523,19.505,55.0]
[1693779049135,7.989,19.525,19.505,55.0]
[1693779050144,23.21965094,19.525,19.505,55.0]
[1693779050337,55.0,19.524,19.505,55.0]
[1693779050737,55.0,19.524,19.504,55.0]
[1693779050937,55.0,19.524,19.505,20.0]
[1693779051138,55.0,19.524,19.506,55.0]
[1693779052543,55.0,19.524,19.506,110.0]
[1693779053145,26.35,19.52,19.505,20.0]
[1693779053454,55.0,19.519,19.504,20.0]
[1693779054544,55.0,19.519,19.505,55.0]
[1693779057141,26.35,19.52,19.505,55.0]
[1693779061357,99.543,19.522,19.505,55.0]
[1693779061754,26.35,19.52,19.505,55.0]
[1693779062355,26.35,19.52,19.504,46.35]
[1693779062549,55.0,19.519,19.504,46.35]
[1693779063848,55.0,19.519,19.505,55.0]
[1693779064353,55.0,19.519,19.504,20.0]
[1693779064542,55.0,19.519,19.501,20.0]
[1693779065561,55.0,19.519,19.501,46.35]
[1693779065756,55.0,19.519,19.502,55.0]
[1693779065949,55.0,19.519,19.503,20.0]
[1693779066151,55.0,19.519,19.504,55.0]
[1693779066456,55.0,19.519,19.505,20.0]
[1693779072267,55.0,19.519,19.502,20.0]
[1693779072566,55.0,19.519,19.503,55.0]
[1693779072766,55.0,19.519,19.504,20.0]
[1693779075658,62.992,19.519,19.501,26.35]
[1693779075863,20.0,19.518,19.491,25.70403862]
[1693779076065,7.993,19.516,19.492,76.55882435]
[1693779076366,75.0,19.515,19.493,25.70403862]
[1693779076563,75.0,19.515,19.493,82.26286297]
[1693779076757,75.0,19.515,19.494,20.0]
[1693779076966,75.0,19.515,19.495,55.0]
[1693779077172,90.6114,19.514,19.494,55.0]
[1693779077371,55.0,19.513,19.494,55.0]
[1693779078366,55.0,19.513,19.495,20.0]
[1693779078571,55.0,19.513,19.496,55.0]
[1693779122209,55.0,19.513,19.495,20.0]
[1693779122406,55.0,19.513,19.496,55.0]
[1693779122699,55.0,19.513,19.495,55.0]
[1693779148321,130.93977352,19.514,19.495,55.0]
[1693779148621,130.93977352,19.514,19.5,26.35]
[1693779155318,130.93977352,19.514,19.497,82.262863]
[1693779155517,130.93977352,19.514,19.498,55.0]
[1693779159928,138.93377352,19.514,19.498,55.0]
[1693779160814,130.93977352,19.514,19.498,55.0]
[1693779171335,138.93377352,19.514,19.498,55.0]
[1693779172433,90.6114,19.514,19.5,26.35]
[1693779172735,15.75731143,19.52,19.501,75.0]
[1693779172939,15.75731143,19.52,19.501,157.26286297]
[1693779173433,15.75731143,19.52,19.501,100.70403862]
[1693779173635,15.75731143,19.52,19.502,56.55882435]
[1693779173838,15.75731143,19.52,19.503,75.0]
[1693779175327,91.4775,19.522,19.503,75.0]
[1693779175517,55.0,19.521,19.503,75.0]
[1693779178429,55.0,19.521,19.503,157.262863]
[1693779180333,26.35,19.52,19.503,157.262863]
[1693779181036,55.0,19.519,19.503,157.262863]
[1693779181538,55.0,19.52,19.503,157.262863]
[1693779182033,55.0,19.521,19.503,157.262863]
[1693779184826,55.0,19.522,19.503,157.262863]
[1693779185033,15.37692307,19.524,19.503,157.262863]
[1693779186341,55.0,19.523,19.503,157.262863]
[1693779198863,62.99,19.523,19.503,157.262863]
[1693779208761,55.0,19.523,19.503,157.262863]
[1693779211267,96.15633007,19.523,19.503,157.262863]
[1693779215774,90.1337,19.525,19.51,26.35]
[1693779216967,55.0,19.524,19.51,26.35]
[1693779219288,55.0,19.524,19.504,11.8604]
[1693779219474,55.0,19.524,19.505,75.0]
[1693779223774,62.99,19.524,19.505,75.0]
[1693779229583,55.0,19.524,19.51,26.35]
[1693779229783,55.0,19.524,19.505,75.0]
[1693779230700,62.99,19.524,19.505,75.0]
[1693779231105,55.0,19.524,19.505,75.0]
[1693779238707,62.99,19.524,19.505,75.0]
[1693779239005,55.0,19.524,19.505,75.0]
[1693779240313,55.0,19.524,19.51,26.35]
[1693779243611,62.99,19.524,19.505,75.0]
[1693779243799,62.99,19.524,19.505,20.0]
[1693779244318,62.99,19.524,19.504,20.0]
[1693779244608,55.0,19.524,19.504,20.0]
[1693779245212,62.99,19.524,19.504,20.0]
[1693779245408,55.0,19.524,19.505,55.0]
[1693779251040,90.1337,19.525,19.51,26.35]
[1693779251207,90.1337,19.525,19.511,55.0]
[1693779292042,90.1337,19.525,19.51,26.35]
[1693779292230,55.0,19.524,19.51,26.35]
[1693779306351,130.37164871,19.525,19.51,26.35]
[1693779306965,90.1337,19.525,19.51,26.35]
[1693779307257,98.1237,19.525,19.51,26.35]
[1693779307859,55.0,19.524,19.51,26.35]
[1693779315752,62.99,19.524,19.51,26.35]
[1693779316270,55.0,19.524,19.51,26.35]
[1693779321771,96.49743589,19.524,19.51,26.35]
[1693779324373,104.48743589,19.524,19.51,26.35]
[1693779325272,96.49743589,19.524,19.51,26.35]
[1693779335803,26.35,19.53,19.511,20.0]
[1693779335986,99.2884,19.531,19.512,55.0]
[1693779336192,99.2884,19.531,19.513,25.70403862]